fUST/lending_fUST_20240824
["ID","MTS","AMOUNT","RATE_DAILY","PERIOD"]
[335716160,1724460652092,-1241.05,0.00013972,2]
[335716161,1724460652105,-506.45474192,0.00013972,2]
[335716162,1724460652115,-736.36,0.00013972,2]
[335716163,1724460652125,-605.75,0.00013972,2]
[335716164,1724460652134,-500.0,0.00013972,2]
[335716165,1724460652143,-585.12,0.00013972,2]
[335716166,1724460652152,-500.0,0.00013972,2]
[335716167,1724460652162,-500.0,0.00013972,2]
[335716168,1724460652171,-500.0,0.00013972,2]
[335716170,1724460652181,-500.0,0.00013972,2]
[335716171,1724460652192,-1418.2,0.00013972,2]
[335716173,1724460652204,-500.0,0.00013972,2]
[335716176,1724460652216,-500.0,0.00013972,2]
[335716178,1724460652227,-500.0,0.00013972,2]
[335716180,1724460652237,-151.0,0.00013972,2]
[335716182,1724460652248,-151.0,0.00013972,2]
[335716184,1724460652258,-500.0,0.00013972,2]
[335716186,1724460652267,-500.0,0.00013972,2]
[335716187,1724460652277,-500.0,0.00013972,2]
[335716188,1724460652287,-500.0,0.00013972,2]
[335716189,1724460652296,-500.0,0.00013972,2]
[335716190,1724460652305,-500.0,0.00013972,2]
[335716191,1724460652316,-500.0,0.00013972,2]
[335716192,1724460652327,-1001.47,0.00013972,2]
[335716193,1724460652339,-364.910067,0.00013972,2]
[335716194,1724460652350,-364.910067,0.00013972,2]
[335716195,1724460652361,-364.910067,0.00013972,2]
[335716196,1724460652371,-364.910067,0.00013972,2]
[335716197,1724460652380,-500.0,0.00013972,2]
[335716198,1724460652390,-500.0,0.00013972,2]
[335716199,1724460652400,-364.910067,0.00013972,2]
[335716200,1724460652411,-364.910067,0.00013972,2]
[335716201,1724460652421,-500.0,0.00013972,2]
[335716202,1724460652431,-364.910067,0.00013972,2]
[335716203,1724460652441,-364.910067,0.00013972,2]
[335716204,1724460652453,-500.0,0.00013972,2]
[335716205,1724460652463,-500.0,0.00013972,2]
[335716206,1724460652472,-500.0,0.00013972,2]
[335716207,1724460652482,-151.0,0.00013972,2]
[335716208,1724460652491,-151.0,0.00013972,2]
[335716209,1724460652500,-1085.02,0.00013972,2]
[335716210,1724460652510,-500.0,0.00013972,2]
[335716211,1724460652520,-500.0,0.00013972,2]
[335716212,1724460652534,-458.5888894,0.00013972,2]
[335716213,1724460652544,-2705.41,0.00013972,2]
[335716215,1724460652555,-330.78776455,0.00013972,2]
[335716216,1724460652564,-542.2001206,0.00013972,2]
[335716218,1724460652574,-500.0,0.00013972,2]
[335716220,1724460652583,-500.0,0.00013972,2]
[335716222,1724460652592,-1450.95,0.00013972,2]
[335716224,1724460652602,-500.0,0.00013972,2]
[335716226,1724460652615,-1305.48,0.00013972,2]
[335716228,1724460652625,-500.0,0.00013972,2]
[335716230,1724460652635,-500.0,0.00013972,2]
[335716233,1724460652645,-500.0,0.00013972,2]
[335716235,1724460652656,-702.48,0.00013972,2]
[335716237,1724460652666,-500.0,0.00013972,2]
[335716238,1724460652676,-500.0,0.00013972,2]
[335716240,1724460652685,-1134.95,0.00013972,2]
[335716242,1724460652695,-500.0,0.00013972,2]
[335716243,1724460652704,-717.25,0.00013972,2]
[335716244,1724460652714,-1710.49,0.00013972,2]
[335716245,1724460652724,-151.0,0.00013972,2]
[335716246,1724460652733,-151.0,0.00013972,2]
[335716247,1724460652742,-294.343446,0.00013972,2]
[335716248,1724460652752,-500.0,0.00013972,2]
[335716249,1724460652763,-214.835708,0.00013972,2]
[335716250,1724460652772,-214.835708,0.00013972,2]
[335716251,1724460652781,-516.2,0.00013972,2]
[335716252,1724460652790,-214.835708,0.00013972,2]
[335716253,1724460652800,-597.48533775,0.00013972,2]
[335716254,1724460652810,-500.0,0.00013972,2]
[335716255,1724460652820,-500.0,0.00013972,2]
[335716256,1724460652829,-500.0,0.00013972,2]
[335716257,1724460652838,-566.19,0.00013972,2]
[335716258,1724460652847,-214.835708,0.00013972,2]
[335716259,1724460652857,-214.835708,0.00013972,2]
[335716260,1724460652867,-214.835708,0.00013972,2]
[335716261,1724460652876,-502.64189187,0.00013972,2]
[335716262,1724460652886,-542.16,0.00013972,2]
[335716263,1724460652895,-683.37,0.00013972,2]
[335716264,1724460652905,-500.0,0.00013972,2]
[335716265,1724460652915,-828.16,0.00013972,2]
[335716266,1724460652925,-680.64,0.00013972,2]
[335716267,1724460652935,-500.0,0.00013972,2]
[335716268,1724460652944,-500.0,0.00013972,2]
[335716269,1724460652954,-417.02812713,0.00013972,2]
[335716270,1724460652964,-702.89,0.00013972,2]
[335716271,1724460652973,-500.0,0.00013972,2]
[335716272,1724460652983,-3160.63,0.00013972,2]
[335716273,1724460652992,-501.53474454,0.00013972,2]
[335716274,1724460653001,-500.0,0.00013972,2]
[335716275,1724460653011,-500.0,0.00013972,2]
[335716276,1724460653020,-500.0,0.00013972,2]
[335716277,1724460653029,-500.0,0.00013972,2]
[335716278,1724460653038,-500.0,0.00013972,2]
[335716279,1724460653048,-500.0,0.00013972,2]
[335716280,1724460653057,-500.0,0.00013972,2]
[335716281,1724460653066,-603.58,0.00013972,2]
[335716282,1724460653076,-1268.6,0.00013972,2]
[335716283,1724460653085,-1366.07,0.00013972,2]
[335716284,1724460653096,-500.0,0.00013972,2]
[335716285,1724460653105,-790.04,0.00013972,2]
[335716286,1724460653114,-500.0,0.00013972,2]
[335716287,1724460653124,-500.0,0.00013972,2]
[335716288,1724460653133,-500.0,0.00013972,2]
[335716289,1724460653142,-2367.26,0.00013972,2]
[335716290,1724460653153,-500.0,0.00013972,2]
[335716291,1724460653163,-500.0,0.00013972,2]
[335716292,1724460653172,-500.0,0.00013972,2]
[335716293,1724460653183,-500.0,0.00013972,2]
[335716294,1724460653194,-364.82098739,0.00013972,2]
[335716295,1724460653206,-1771.02,0.00013972,2]
[335716296,1724460653216,-500.0,0.00013972,2]
[335716297,1724460653228,-1341.22,0.00013972,2]
[335716298,1724460653238,-500.0,0.00013972,2]
[335716299,1724460653248,-500.0,0.00013972,2]
[335716300,1724460653258,-500.0,0.00013972,2]
[335716301,1724460653268,-500.0,0.00013972,2]
[335716302,1724460653278,-572.54,0.00013972,2]
[335716303,1724460653287,-500.0,0.00013972,2]
[335716304,1724460653297,-500.0,0.00013972,2]
[335716305,1724460653307,-500.0,0.00013972,2]
[335716306,1724460653316,-151.0,0.00013972,2]
[335716307,1724460653326,-501.2744033,0.00013972,2]
[335716308,1724460653335,-151.0,0.00013972,2]
[335716309,1724460653344,-151.0,0.00013972,2]
[335716310,1724460653354,-151.0,0.00013972,2]
[335716311,1724460653363,-500.0,0.00013972,2]
[335716312,1724460653373,-151.0,0.00013972,2]
[335716313,1724460653382,-155.104913,0.00013972,2]
[335716314,1724460653392,-1182.89,0.00013972,2]
[335716315,1724460653402,-571.67,0.00013972,2]
[335716316,1724460653412,-500.0,0.00013972,2]
[335716317,1724460653421,-814.64,0.00013972,2]
[335716318,1724460653432,-500.0,0.00013972,2]
[335716319,1724460653441,-500.0,0.00013972,2]
[335716320,1724460653459,-610.58,0.00013972,2]
[335716321,1724460653469,-500.0,0.00013972,2]
[335716322,1724460653480,-500.0,0.00013972,2]
[335716323,1724460653490,-500.0,0.00013972,2]
[335716324,1724460653503,-500.0,0.00013972,2]
[335716325,1724460653513,-1080.96,0.00013972,2]
[335716326,1724460653524,-500.0,0.00013972,2]
[335716327,1724460653540,-795.0,0.00013972,2]
[335716328,1724460653552,-592.18,0.00013972,2]
[335716329,1724460653562,-500.0,0.00013972,2]
[335716330,1724460653572,-2316.753774,0.00013972,2]
[335716331,1724460653581,-500.0,0.00013972,2]
[335716332,1724460653591,-2316.753774,0.00013972,2]
[335716333,1724460653603,-2316.753774,0.00013972,2]
[335716334,1724460653613,-2316.753774,0.00013972,2]
[335716335,1724460653622,-500.0,0.00013972,2]
[335716336,1724460653632,-500.0,0.00013972,2]
[335716337,1724460653641,-2316.753774,0.00013972,2]
[335716338,1724460653651,-2316.753774,0.00013972,2]
[335716339,1724460653660,-391.249693,0.00013972,2]
[335716340,1724460653670,-151.0,0.00013972,2]
[335716341,1724460653680,-2316.753774,0.00013972,2]
[335716342,1724460653690,-2316.753774,0.00013972,2]
[335716343,1724460653700,-391.249693,0.00013972,2]
[335716344,1724460653710,-391.249693,0.00013972,2]
[335716345,1724460653720,-500.0,0.00013972,2]
[335716346,1724460653731,-500.0,0.00013972,2]
[335716347,1724460653740,-391.249693,0.00013972,2]
[335716348,1724460653750,-151.0,0.00013972,2]
[335716349,1724460653761,-391.249693,0.00013972,2]
[335716350,1724460653771,-151.0,0.00013972,2]
[335716351,1724460653780,-391.249693,0.00013972,2]
[335716352,1724460653789,-151.0,0.00013972,2]
[335716353,1724460653799,-151.0,0.00013972,2]
[335716354,1724460653809,-500.0,0.00013972,2]
[335716355,1724460653818,-670.63,0.00013972,2]
[335716356,1724460653828,-806.45,0.00013972,2]
[335716357,1724460653838,-500.0,0.00013972,2]
[335716358,1724460653848,-386.91903079,0.00013972,2]
[335716359,1724460653857,-1566.39,0.00013972,2]
[335716360,1724460653867,-500.0,0.00013972,2]
[335716361,1724460653877,-500.0,0.00013972,2]
[335716362,1724460653887,-560.7,0.00013972,2]
[335716363,1724460653897,-1066.55,0.00013972,2]
[335716364,1724460653907,-826.76,0.00013972,2]
[335716365,1724460653916,-307.964821,0.00013972,2]
[335716366,1724460653927,-307.964821,0.00013972,2]
[335716367,1724460653938,-307.964821,0.00013972,2]
[335716368,1724460653948,-307.964821,0.00013972,2]
[335716369,1724460653958,-151.0,0.00013972,2]
[335716370,1724460653969,-555.97,0.00013972,2]
[335716371,1724460653978,-307.964821,0.00013972,2]
[335716372,1724460653987,-307.964821,0.00013972,2]
[335716373,1724460653997,-500.0,0.00013972,2]
[335716374,1724460654006,-307.964821,0.00013972,2]
[335716375,1724460654016,-307.964821,0.00013972,2]
[335716376,1724460654026,-500.0,0.00013972,2]
[335716377,1724460654035,-500.0,0.00013972,2]
[335716378,1724460654045,-330.67254587,0.00013972,2]
[335716379,1724460654056,-500.0,0.00013972,2]
[335716380,1724460654068,-500.0,0.00013972,2]
[335716381,1724460654078,-500.0,0.00013972,2]
[335716382,1724460654088,-383.042266,0.00013972,2]
[335716383,1724460654225,-500.0,0.00013972,2]
[335716384,1724460654235,-383.042266,0.00013972,2]
[335716385,1724460654246,-383.042266,0.00013972,2]
[335716386,1724460654258,-500.0,0.00013972,2]
[335716387,1724460654267,-383.042266,0.00013972,2]
[335716388,1724460654277,-238.68484419,0.00013972,2]
[335716389,1724460654287,-500.0,0.00013972,2]
[335716390,1724460654300,-702.93,0.00013972,2]
[335716391,1724460654311,-383.042266,0.00013972,2]
[335716392,1724460654322,-383.042266,0.00013972,2]
[335716393,1724460654333,-383.042266,0.00013972,2]
[335716394,1724460654342,-383.042266,0.00013972,2]
[335716395,1724460654352,-675.51,0.00013972,2]
[335716396,1724460654364,-500.0,0.00013972,2]
[335716397,1724460654373,-779.44,0.00013972,2]
[335716398,1724460654382,-500.0,0.00013972,2]
[335716399,1724460654391,-625.86,0.00013972,2]
[335716400,1724460654402,-790.28,0.00013972,2]
[335716401,1724460654412,-177.69965415,0.00013972,2]
[335716402,1724460654423,-500.0,0.00013972,2]
[335716403,1724460654433,-500.0,0.00013972,2]
[335716404,1724460654444,-500.0,0.00013972,2]
[335716405,1724460654454,-3295.03,0.00013972,2]
[335716406,1724460654464,-500.0,0.00013972,2]
[335716407,1724460654473,-687.06,0.00013972,2]
[335716408,1724460654482,-500.0,0.00013972,2]
[335716409,1724460654492,-1633.97,0.00013972,2]
[335716410,1724460654502,-500.0,0.00013972,2]
[335716411,1724460654512,-500.0,0.00013972,2]
[335716412,1724460654521,-538.54,0.00013972,2]
[335716413,1724460654534,-500.0,0.00013972,2]
[335716414,1724460654544,-500.0,0.00013972,2]
[335716415,1724460654555,-1466.2,0.00013972,2]
[335716416,1724460654565,-2286.16,0.00013972,2]
[335716417,1724460654575,-762.88,0.00013972,2]
[335716418,1724460654585,-3129.88,0.00013972,2]
[335716419,1724460654596,-500.0,0.00013972,2]
[335716420,1724460654609,-500.0,0.00013972,2]
[335716421,1724460654619,-500.0,0.00013972,2]
[335716422,1724460654629,-500.0,0.00013972,2]
[335716423,1724460654639,-1633.62,0.00013972,2]
[335716424,1724460654651,-677.39,0.00013972,2]
[335716425,1724460654662,-818.51,0.00013972,2]
[335716426,1724460654671,-696.46,0.00013972,2]
[335716427,1724460654682,-500.0,0.00013972,2]
[335716428,1724460654694,-601.89,0.00013972,2]
[335716429,1724460654704,-500.0,0.00013972,2]
[335716430,1724460654716,-500.0,0.00013972,2]
[335716431,1724460654727,-512.86,0.00013972,2]
[335716432,1724460654738,-500.0,0.00013972,2]
[335716433,1724460654749,-807.14,0.00013972,2]
[335716434,1724460654761,-926.05,0.00013972,2]
[335716435,1724460654770,-500.0,0.00013972,2]
[335716436,1724460654780,-571.59322596,0.00013972,2]
[335716437,1724460654791,-607.08,0.00013972,2]
[335716438,1724460654801,-500.0,0.00013972,2]
[335716439,1724460654811,-1265.58,0.00013972,2]
[335716440,1724460654821,-949.862688,0.00013972,2]
[335716441,1724460654831,-949.862688,0.00013972,2]
[335716442,1724460654840,-949.862688,0.00013972,2]
[335716443,1724460654849,-949.862688,0.00013972,2]
[335716444,1724460654859,-500.0,0.00013972,2]
[335716445,1724460654868,-500.0,0.00013972,2]
[335716446,1724460654880,-1200.8,0.00013972,2]
[335716447,1724460654890,-500.0,0.00013972,2]
[335716448,1724460654901,-500.0,0.00013972,2]
[335716449,1724460654912,-939.19,0.00013972,2]
[335716450,1724460654922,-500.0,0.00013972,2]
[335716451,1724460654933,-610.68,0.00013972,2]
[335716452,1724460654943,-500.0,0.00013972,2]
[335716453,1724460654954,-500.0,0.00013972,2]
[335716454,1724460654965,-500.0,0.00013972,2]
[335716455,1724460654974,-805.79,0.00013972,2]
[335716456,1724460654985,-500.0,0.00013972,2]
[335716457,1724460654996,-1091.24,0.00013972,2]
[335716458,1724460655006,-500.0,0.00013972,2]
[335716459,1724460655017,-500.0,0.00013972,2]
[335716460,1724460655026,-500.0,0.00013972,2]
[335716461,1724460655037,-2854.94,0.00013972,2]
[335716462,1724460655047,-1023.62,0.00013972,2]
[335716463,1724460655057,-500.0,0.00013972,2]
[335716464,1724460655066,-500.0,0.00013972,2]
[335716465,1724460655076,-1499.86,0.00013972,2]
[335716466,1724460655085,-500.0,0.00013972,2]
[335716467,1724460655094,-500.0,0.00013972,2]
[335716468,1724460655104,-500.0,0.00013972,2]
[335716469,1724460655113,-763.4,0.00013972,2]
[335716470,1724460655122,-500.0,0.00013972,2]
[335716471,1724460655132,-1460.83,0.00013972,2]
[335716472,1724460655141,-500.0,0.00013972,2]
[335716473,1724460655150,-551.4,0.00013972,2]
[335716474,1724460655160,-500.0,0.00013972,2]
[335716475,1724460655169,-500.0,0.00013972,2]
[335716476,1724460655179,-500.0,0.00013972,2]
[335716477,1724460655188,-500.0,0.00013972,2]
[335716478,1724460655197,-500.0,0.00013972,2]
[335716479,1724460655206,-12214.04,0.00013972,2]
[335716480,1724460655216,-866.15,0.00013972,2]
[335716481,1724460655226,-822.75,0.00013972,2]
[335716482,1724460655235,-862.15,0.00013972,2]
[335716483,1724460655245,-500.0,0.00013972,2]
[335716484,1724460655254,-500.0,0.00013972,2]
[335716485,1724460655264,-2902.623721,0.00013972,2]
[335716486,1724460655273,-2902.623721,0.00013972,2]
[335716487,1724460655283,-2902.623721,0.00013972,2]
[335716488,1724460655292,-500.0,0.00013972,2]
[335716489,1724460655301,-2902.623721,0.00013972,2]
[335716490,1724460655311,-151.0,0.00013972,2]
[335716491,1724460655321,-151.0,0.00013972,2]
[335716492,1724460655330,-151.0,0.00013972,2]
[335716493,1724460655342,-151.0,0.00013972,2]
[335716494,1724460655352,-2902.623721,0.00013972,2]
[335716495,1724460655362,-1108.85,0.00013972,2]
[335716496,1724460655371,-2902.623721,0.00013972,2]
[335716497,1724460655381,-2902.623721,0.00013972,2]
[335716498,1724460655391,-2902.623721,0.00013972,2]
[335716499,1724460655400,-500.0,0.00013972,2]
[335716500,1724460655411,-1033.674367,0.00013972,2]
[335716501,1724460655421,-1633.28,0.00013972,2]
[335716502,1724460655432,-1033.674367,0.00013972,2]
[335716503,1724460655442,-1033.674367,0.00013972,2]
[335716504,1724460655451,-151.0,0.00013972,2]
[335716505,1724460655460,-501.9,0.00013972,2]
[335716506,1724460655469,-1033.674367,0.00013972,2]
[335716507,1724460655479,-151.0,0.00013972,2]
[335716508,1724460655488,-151.0,0.00013972,2]
[335716509,1724460655497,-151.0,0.00013972,2]
[335716510,1724460655507,-774.51,0.00013972,2]
[335716511,1724460655518,-1033.674367,0.00013972,2]
[335716512,1724460655531,-6320.43,0.00013972,2]
[335716513,1724460655541,-1033.674367,0.00013972,2]
[335716514,1724460655552,-1033.674367,0.00013972,2]
[335716515,1724460655562,-1033.674367,0.00013972,2]
[335716516,1724460655573,-500.0,0.00013972,2]
[335716517,1724460655583,-661.56,0.00013972,2]
[335716518,1724460655593,-500.0,0.00013972,2]
[335716519,1724460655606,-500.0,0.00013972,2]
[335716520,1724460655616,-151.0,0.00013972,2]
[335716521,1724460655628,-151.0,0.00013972,2]
[335716522,1724460655638,-500.0,0.00013972,2]
[335716523,1724460655649,-151.0,0.00013972,2]
[335716524,1724460655660,-500.0,0.00013972,2]
[335716525,1724460655669,-222.432656,0.00013972,2]
[335716526,1724460655680,-500.0,0.00013972,2]
[335716527,1724460655689,-500.0,0.00013972,2]
[335716528,1724460655698,-927.03,0.00013972,2]
[335716529,1724460655708,-500.0,0.00013972,2]
[335716530,1724460655719,-500.0,0.00013972,2]
[335716531,1724460655728,-1208.36,0.00013972,2]
[335716532,1724460655738,-500.0,0.00013972,2]
[335716533,1724460655748,-3798.79,0.00013972,2]
[335716534,1724460655758,-500.0,0.00013972,2]
[335716535,1724460655767,-500.0,0.00013972,2]
[335716536,1724460655777,-500.0,0.00013972,2]
[335716537,1724460655787,-500.0,0.00013972,2]
[335716538,1724460655797,-500.0,0.00013972,2]
[335716539,1724460655806,-500.0,0.00013972,2]
[335716540,1724460655816,-500.0,0.00013972,2]
[335716541,1724460655826,-500.0,0.00013972,2]
[335716542,1724460655835,-500.0,0.00013972,2]
[335716543,1724460655845,-265.89318957,0.00013972,2]
[335716544,1724460655854,-1040.471146,0.00013972,2]
[335716545,1724460655864,-7611.11,0.00013972,2]
[335716546,1724460655873,-1040.471146,0.00013972,2]
[335716547,1724460655882,-1040.471146,0.00013972,2]
[335716548,1724460655892,-1040.471146,0.00013972,2]
[335716549,1724460655902,-665.01,0.00013972,2]
[335716550,1724460655912,-1302.7,0.00013972,2]
[335716551,1724460655922,-1040.471146,0.00013972,2]
[335716552,1724460655932,-1040.471146,0.00013972,2]
[335716553,1724460655943,-1040.471146,0.00013972,2]
[335716554,1724460655954,-846.337634,0.00013972,2]
[335716555,1724460655963,-1040.471146,0.00013972,2]
[335716556,1724460655973,-500.0,0.00013972,2]
[335716557,1724460655982,-846.337634,0.00013972,2]
[335716558,1724460655992,-846.337634,0.00013972,2]
[335716559,1724460656001,-846.337634,0.00013972,2]
[335716560,1724460656011,-3997.270376,0.00013972,2]
[335716561,1724460656021,-3997.270376,0.00013972,2]
[335716562,1724460656031,-3997.270376,0.00013972,2]
[335716563,1724460656041,-3997.270376,0.00013972,2]
[335716564,1724460656052,-10561.9,0.00013972,2]
[335716565,1724460656062,-846.337634,0.00013972,2]
[335716566,1724460656072,-500.0,0.00013972,2]
[335716567,1724460656082,-846.337634,0.00013972,2]
[335716568,1724460656093,-846.337634,0.00013972,2]
[335716569,1724460656105,-3997.270376,0.00013972,2]
[335716570,1724460656116,-846.337634,0.00013972,2]
[335716571,1724460656127,-3997.270376,0.00013972,2]
[335716572,1724460656137,-3997.270376,0.00013972,2]
[335716573,1724460656147,-3997.270376,0.00013972,2]
[335716574,1724460656159,-931.34,0.00013972,2]
[335716575,1724460656169,-562.4,0.00013972,2]
[335716576,1724460656178,-1047.36,0.00013972,2]
[335716577,1724460656187,-616.88290999,0.00013972,2]
[335716578,1724460656196,-500.0,0.00013972,2]
[335716579,1724460656206,-500.0,0.00013972,2]
[335716580,1724460656368,-799.29,0.00013972,2]
[335716581,1724460656378,-697.81,0.00013972,2]
[335716582,1724460656388,-500.0,0.00013972,2]
[335716583,1724460656397,-500.0,0.00013972,2]
[335716584,1724460656406,-500.0,0.00013972,2]
[335716585,1724460656416,-860.49,0.00013972,2]
[335716586,1724460656427,-500.0,0.00013972,2]
[335716587,1724460656436,-1186.915058,0.00013972,2]
[335716588,1724460656446,-500.0,0.00013972,2]
[335716589,1724460656456,-1186.915058,0.00013972,2]
[335716590,1724460656465,-1186.915058,0.00013972,2]
[335716591,1724460656475,-1186.915058,0.00013972,2]
[335716592,1724460656484,-822.88,0.00013972,2]
[335716593,1724460656493,-500.0,0.00013972,2]
[335716594,1724460656503,-4841.43,0.00013972,2]
[335716595,1724460656512,-434.711961,0.00013972,2]
[335716596,1724460656526,-434.711961,0.00013972,2]
[335716597,1724460656535,-434.711961,0.00013972,2]
[335716598,1724460656544,-1186.915058,0.00013972,2]
[335716599,1724460656554,-434.711961,0.00013972,2]
[335716600,1724460656565,-1186.915058,0.00013972,2]
[335716601,1724460656574,-1186.915058,0.00013972,2]
[335716602,1724460656584,-1186.915058,0.00013972,2]
[335716603,1724460656593,-434.711961,0.00013972,2]
[335716604,1724460656604,-434.711961,0.00013972,2]
[335716605,1724460656614,-434.711961,0.00013972,2]
[335716606,1724460656624,-434.711961,0.00013972,2]
[335716607,1724460656634,-500.0,0.00013972,2]
[335716608,1724460656644,-583.27,0.00013972,2]
[335716609,1724460656653,-500.0,0.00013972,2]
[335716610,1724460656663,-500.0,0.00013972,2]
[335716611,1724460656672,-5575.89,0.00013972,2]
[335716612,1724460656683,-1985.71,0.00013972,2]
[335716613,1724460656694,-586.15,0.00013972,2]
[335716614,1724460656704,-500.0,0.00013972,2]
[335716615,1724460656714,-151.0,0.00013972,2]
[335716616,1724460656724,-151.0,0.00013972,2]
[335716617,1724460656734,-151.0,0.00013972,2]
[335716618,1724460656744,-151.0,0.00013972,2]
[335716619,1724460656754,-500.0,0.00013972,2]
[335716620,1724460656764,-500.0,0.00013972,2]
[335716621,1724460656775,-151.0,0.00013972,2]
[335716622,1724460656786,-151.0,0.00013972,2]
[335716623,1724460656798,-604.42,0.00013972,2]
[335716624,1724460656810,-500.0,0.00013972,2]
[335716625,1724460656819,-500.0,0.00013972,2]
[335716626,1724460656831,-500.0,0.00013972,2]
[335716627,1724460656841,-500.0,0.00013972,2]
[335716628,1724460656851,-500.0,0.00013972,2]
[335716629,1724460656862,-500.0,0.00013972,2]
[335716630,1724460656872,-1006.39,0.00013972,2]
[335716631,1724460656882,-612.36,0.00013972,2]
[335716632,1724460656893,-500.0,0.00013972,2]
[335716633,1724460656904,-150.0,0.00013972,2]
[335716634,1724460656915,-641.39,0.00013972,2]
[335716635,1724460656926,-500.0,0.00013972,2]
[335716636,1724460656938,-766.62,0.00013972,2]
[335716637,1724460656947,-500.0,0.00013972,2]
[335716638,1724460656956,-898.63,0.00013972,2]
[335716639,1724460656971,-3736.04,0.00013972,2]
[335716640,1724460656983,-500.0,0.00013972,2]
[335716641,1724460656992,-10312.48,0.00013972,2]
[335716642,1724460657002,-943.315749,0.00013972,2]
[335716643,1724460657011,-943.315749,0.00013972,2]
[335716644,1724460657022,-943.315749,0.00013972,2]
[335716645,1724460657031,-559.43,0.00013972,2]
[335716646,1724460657040,-500.0,0.00013972,2]
[335716647,1724460657050,-943.315749,0.00013972,2]
[335716648,1724460657062,-1407.69,0.00013972,2]
[335716649,1724460657071,-226.733363,0.00013972,2]
[335716650,1724460657080,-226.733363,0.00013972,2]
[335716651,1724460657091,-226.733363,0.00013972,2]
[335716652,1724460657101,-226.733363,0.00013972,2]
[335716653,1724460657110,-943.315749,0.00013972,2]
[335716654,1724460657120,-500.0,0.00013972,2]
[335716655,1724460657131,-943.315749,0.00013972,2]
[335716656,1724460657142,-404.541054,0.00013972,2]
[335716657,1724460657152,-943.315749,0.00013972,2]
[335716658,1724460657162,-404.541054,0.00013972,2]
[335716659,1724460657171,-943.315749,0.00013972,2]
[335716660,1724460657182,-404.541054,0.00013972,2]
[335716661,1724460657194,-404.541054,0.00013972,2]
[335716662,1724460657203,-500.0,0.00013972,2]
[335716663,1724460657214,-226.733363,0.00013972,2]
[335716664,1724460657224,-226.733363,0.00013972,2]
[335716665,1724460657234,-2234.39,0.00013972,2]
[335716666,1724460657245,-226.733363,0.00013972,2]
[335716667,1724460657255,-226.733363,0.00013972,2]
[335716668,1724460657265,-500.0,0.00013972,2]
[335716669,1724460657274,-404.541054,0.00013972,2]
[335716670,1724460657290,-404.541054,0.00013972,2]
[335716671,1724460657312,-404.541054,0.00013972,2]
[335716672,1724460657330,-2195.43,0.00013972,2]
[335716673,1724460657351,-404.541054,0.00013972,2]
[335716674,1724460657371,-318.01652731,0.00013972,2]
[335716675,1724460657387,-962.54,0.00013972,2]
[335716676,1724460657405,-1455.14,0.00013972,2]
[335716677,1724460657421,-500.0,0.00013972,2]
[335716678,1724460657437,-500.0,0.00013972,2]
[335716679,1724460657455,-2252.53,0.00013972,2]
[335716680,1724460657490,-906.08,0.00013972,2]
[335716681,1724460657504,-1106.62,0.00013972,2]
[335716682,1724460657521,-500.0,0.00013972,2]